fUSD/lending_fUSD_20240317
["ID","MTS","AMOUNT","RATE_DAILY","PERIOD"]
[319341763,1710677444596,-10903.7,0.00018999,2]
[319341764,1710677444605,-10903.7,0.00018999,2]
[319341765,1710677444614,-10903.7,0.00018999,2]
[319341766,1710677444623,-10903.7,0.00018999,2]
[319341767,1710677444632,-10903.7,0.00018999,2]
[319341768,1710677444641,-10903.7,0.00018999,2]
[319341769,1710677444653,-10903.7,0.00018999,2]
[319341770,1710677444662,-10903.7,0.00018999,2]
[319341771,1710677444671,-10903.7,0.00018999,2]
[319341772,1710677444680,-10903.7,0.00018999,2]
[319341773,1710677444690,-10903.7,0.00018999,2]
[319341774,1710677444701,-10903.7,0.00018999,2]
[319341775,1710677444710,-10903.7,0.00018999,2]
[319341776,1710677444719,-10903.7,0.00018999,2]
[319341777,1710677444728,-10903.7,0.00018999,2]
[319341778,1710677444738,-10903.7,0.00018999,2]
[319341779,1710677444747,-10903.7,0.00018999,2]
[319341780,1710677444757,-10903.7,0.00018999,2]
[319341781,1710677444766,-10903.7,0.00018999,2]
[319341782,1710677444777,-10903.87792386,0.00018999,2]
[319341783,1710677444786,-2279.19,0.00018999,2]
[319341784,1710677444795,-2279.19,0.00018999,2]
[319341785,1710677444803,-2279.19,0.00018999,2]
[319341786,1710677444812,-2279.19,0.00018999,2]
[319341787,1710677444821,-2279.19,0.00018999,2]
[319341788,1710677444831,-2279.19,0.00018999,2]
[319341789,1710677444840,-2279.19,0.00018999,2]
[319341790,1710677444850,-2279.19,0.00018999,2]
[319341791,1710677444858,-2279.19,0.00018999,2]
[319341792,1710677444867,-2279.19,0.00018999,2]
[319341793,1710677444877,-2279.19,0.00018999,2]
[319341794,1710677444886,-2279.19,0.00018999,2]
[319341795,1710677444895,-2279.19,0.00018999,2]
[319341796,1710677444904,-2279.19,0.00018999,2]
[319341797,1710677444913,-2279.19,0.00018999,2]
[319341798,1710677444922,-2279.19,0.00018999,2]
[319341799,1710677444932,-2279.19,0.00018999,2]
[319341800,1710677444941,-2279.19,0.00018999,2]
[319341801,1710677444950,-2279.19,0.00018999,2]
[319341802,1710677444960,-2279.19,0.00018999,2]
[319341803,1710677444969,-2279.19,0.00018999,2]
[319341804,1710677444979,-2279.19,0.00018999,2]
[319341805,1710677444988,-2279.19,0.00018999,2]
[319341806,1710677444997,-2279.26,0.00018999,2]
[319341807,1710677445006,-590.62430401,0.00018999,2]
[319341808,1710677445016,-449.54270072,0.00018999,2]
[319341809,1710677445025,-231.56647905,0.00018999,2]
[319341810,1710677445034,-500.0,0.00018999,2]
[319341811,1710677445043,-500.0,0.00018999,2]
[319341812,1710677445052,-500.0,0.00018999,2]
[319341813,1710677445061,-500.0,0.00018999,2]
[319341814,1710677445070,-500.0,0.00018999,2]
[319341815,1710677445079,-283.4829094,0.00018999,2]
[319341816,1710677445088,-500.0,0.00018999,2]
[319341817,1710677445097,-500.0,0.00018999,2]
[319341818,1710677445106,-500.0,0.00018999,2]
[319341819,1710677445116,-500.0,0.00018999,2]
[319341820,1710677445125,-500.0,0.00018999,2]
[319341821,1710677445134,-500.0,0.00018999,2]
[319341822,1710677445143,-500.0,0.00018999,2]
[319341823,1710677445158,-500.0,0.00018999,2]
[319341824,1710677445181,-500.0,0.00018999,2]
[319341825,1710677445204,-500.0,0.00018999,2]
[319341826,1710677445227,-500.0,0.00018999,2]
[319341827,1710677445250,-500.0,0.00018999,2]
[319341828,1710677445268,-500.0,0.00018999,2]
[319341829,1710677445486,-500.0,0.00018999,2]
[319341830,1710677445495,-500.0,0.00018999,2]
[319341831,1710677445505,-462.34532519,0.00018999,2]
[319341832,1710677445514,-500.0,0.00018999,2]
[319341833,1710677445524,-500.0,0.00018999,2]
[319341834,1710677445533,-500.0,0.00018999,2]
[319341835,1710677445542,-500.0,0.00018999,2]
[319341836,1710677445552,-500.0,0.00018999,2]
[319341837,1710677445561,-500.0,0.00018999,2]
[319341838,1710677445570,-500.0,0.00018999,2]
[319341839,1710677445580,-631.96927056,0.00018999,2]
[319341840,1710677445589,-500.0,0.00018999,2]
[319341841,1710677445598,-500.0,0.00018999,2]
[319341843,1710677445608,-500.0,0.00018999,2]
[319341844,1710677445617,-500.0,0.00018999,2]
[319341846,1710677445626,-500.0,0.00018999,2]
[319341847,1710677445635,-593.25415847,0.00018999,2]
[319341849,1710677445645,-500.0,0.00018999,2]
[319341851,1710677445655,-500.0,0.00018999,2]
[319341852,1710677445666,-500.0,0.00018999,2]
[319341853,1710677445676,-500.0,0.00018999,2]
[319341854,1710677445686,-500.0,0.00018999,2]
[319341855,1710677445695,-1000.0,0.00018999,2]
[319341856,1710677445704,-1000.0,0.00018999,3]
[319341857,1710677445713,-1000.0,0.00018999,4]
[319341858,1710677445722,-1000.0,0.00018999,5]
[319341860,1710677445732,-1000.0,0.00018999,6]
[319341862,1710677445742,-1000.0,0.00018999,7]
[319341864,1710677445751,-500.0,0.00018999,2]
[319341866,1710677445760,-500.0,0.00018999,2]
[319341868,1710677445770,-487.34,0.00018999,2]
[319341870,1710677445779,-500.0,0.00018999,2]
[319341872,1710677445788,-217.06954072,0.00019,3]
[319341874,1710677445797,-61593.69467746,0.00019,2]
[319341877,1710677445812,-7097.07851527,0.00019,2]
[319341879,1710677445823,-11030.40360036,0.00019,2]
[319341881,1710677445836,-5282.07950584,0.00019,2]
[319341884,1710677445848,-11516.04518309,0.00019,2]
[319341886,1710677445858,-2994.55169985,0.00019,2]
[319341888,1710677445870,-21092.24599999,0.00019,2]
[319341890,1710677445881,-18741.61425152,0.00019,2]
[319341892,1710677445892,-23802.92957847,0.00019,2]
[319341895,1710677445908,-1000.0,0.00019,2]
[319341900,1710677446026,-3001.7023,0.00015395,2]
[319341901,1710677446036,-643.24708674,0.00018618,2]
[319341902,1710677446046,-1216.46329409,0.00018998,2]
[319341903,1710677446055,-500.0,0.00018999,2]
[319341904,1710677446064,-2672.39866449,0.00018999,2]
[319341905,1710677446073,-2929.34565922,0.00019,2]
[319341906,1710677446084,-37898.30308521,0.00019,2]
[319341907,1710677446095,-1596.75680765,0.00019,2]
[319341908,1710677446108,-674381.16082431,0.00019,2]
[319341909,1710677446121,-500.0,0.00019,2]
[319341910,1710677446134,-1644.15644672,0.00019,2]
[319341911,1710677446147,-920.11067912,0.00019,2]
[319341912,1710677446161,-32262.30925,0.00019,2]
[319341913,1710677446172,-377.84648109,0.00019,2]
[319341914,1710677446183,-1780.43176568,0.00019,2]
[319341915,1710677446232,-5682.06726937,0.00019,2]
[319341927,1710677978068,988.47538239,0.00022,30]
[319341928,1710678221819,-358.08244329,0.0001317,2]
[319341929,1710678221857,-3641.91755671,0.0001317,2]
[319341934,1710678628343,-162.31041247,0.00013066,2]
[319341935,1710678628366,-3061.26363012,0.00013165,2]
[319341936,1710678628386,-671.32314359,0.00013166,2]
[319341937,1710678628408,-1863.98415914,0.0001317,2]
[319341938,1710678628432,-594.24,0.00013182,2]
[319341939,1710678628453,-193.29,0.00013699,2]
[319341942,1710678632030,-358.08244329,0.0001423,2]
[319341943,1710678632041,-2575.83440228,0.0001423,2]
[319341944,1710678632056,-1336.63347607,0.0001423,2]
[319341945,1710678632070,-301.9164,0.0001423,2]
[319341946,1710678632170,-30788.48285089,0.0001423,2]
[319341947,1710678632181,-162.31041247,0.00014231,2]
[319341948,1710678632191,-150.0,0.00014394,2]
[319341949,1710678632203,-977.32,0.00014396,2]
[319341950,1710678632213,-10000.0,0.00015,2]
[319341951,1710678632224,-3968.55965813,0.00015,2]
[319341952,1710678632234,-10429.72018833,0.00015,2]
[319341953,1710678632244,-155.0,0.00015194,2]
[319341954,1710678632254,-155.0,0.00015195,2]
[319341955,1710678632265,-545.6,0.00015196,2]
[319341956,1710678632276,-150.99,0.00015197,2]
[319341957,1710678632287,-361.58571771,0.00015198,2]
[319341958,1710678632298,-1006.0094,0.00015299,2]
[319341959,1710678632308,-162.31041247,0.00015396,2]
[319341960,1710678632319,-210.0,0.00015834,2]
[319341961,1710678632329,-177.455046,0.00015838,2]
[319341962,1710678632340,-499.99,0.00015897,2]
[319341963,1710678632350,-5000.0,0.00016,2]
[319341964,1710678632360,-150.0,0.00016098,2]
[319341965,1710678632371,-352.29,0.00016126,2]
[319341966,1710678632381,-457.12018074,0.00016148,2]
[319341967,1710678632391,-323.46,0.00016259,2]
[319341968,1710678632401,-250.0,0.00016281,2]
[319341970,1710678632412,-159.63,0.00016287,2]
[319341972,1710678632423,-500.0,0.0001629,2]
[319341979,1710678632805,-5000.0,0.00016299,2]
[319341980,1710678632824,-1500.0,0.00016305,4]
[319341981,1710678632836,-250.0,0.0001631,2]
[319341982,1710678632845,-539.2,0.00016312,2]
[319341983,1710678632854,-2607.7,0.0001634,2]
[319341984,1710678632864,-23795.63,0.00016391,2]
[319341985,1710678632873,-1654.61403939,0.000164,2]
[319341986,1710678632887,-200.0,0.00016438,2]
[319341987,1710678632898,-1225.63,0.00016438,2]
[319341988,1710678632907,-1000.0,0.00016455,2]
[319341989,1710678632918,-460.8,0.00016456,2]
[319341990,1710678632928,-1216.46329409,0.000165,2]
[319341991,1710678632939,-162.31041247,0.00016561,2]
[319341992,1710678632952,-977.32,0.0001666,2]
[319341993,1710678632965,-2330.54,0.00016782,2]
[319341994,1710678632977,-203.37,0.00016829,2]
[319341995,1710678632989,-203.37,0.00016891,2]
[319341996,1710678633000,-167.0,0.00016938,2]
[319341997,1710678633011,-203.37,0.00016953,2]
[319341998,1710678633022,-220.2,0.00016957,2]
[319341999,1710678633031,-5000.0,0.00017,2]
[319342000,1710678633042,-203.37,0.00017015,2]
[319342001,1710678633051,-203.37,0.00017077,2]
[319342002,1710678633061,-726.09026858,0.00017098,2]
[319342003,1710678633071,-203.37,0.00017139,2]
[319342004,1710678633080,-203.37,0.00017201,2]
[319342005,1710678633089,-232.30506691,0.00017214,2]
[319342006,1710678633100,-203.37,0.00017263,2]
[319342007,1710678633109,-203.37,0.00017325,2]
[319342008,1710678633118,-203.37,0.00017387,2]
[319342009,1710678633128,-293.0,0.00017417,2]
[319342010,1710678633137,-203.37,0.00017449,2]
[319342011,1710678633146,-203.37,0.00017511,2]
[319342012,1710678633156,-232.30506691,0.00017548,2]
[319342013,1710678633168,-151.45421479,0.00017562,2]
[319342014,1710678633177,-203.37,0.00017573,2]
[319342015,1710678633186,-203.37,0.00017635,2]
[319342016,1710678633195,-1400.0,0.00017636,2]
[319342017,1710678633205,-150.0,0.00017696,2]
[319342018,1710678633214,-203.37,0.00017697,2]
[319342019,1710678633223,-1000.0,0.00017699,2]
[319342020,1710678633232,-170.56131081,0.00017705,2]
[319342021,1710678633241,-162.31041247,0.00017726,2]
[319342022,1710678633250,-203.37,0.00017759,2]
[319342023,1710678633259,-191.3578,0.00017799,2]
[319342024,1710678633268,-1000.0,0.00017808,2]
[319342025,1710678633277,-203.37,0.00017821,2]
[319342026,1710678633287,-1000.0,0.00017841,2]
[319342027,1710678633297,-1000.0,0.00017841,2]
[319342028,1710678633306,-213.0,0.00017842,2]
[319342029,1710678633316,-1622.0,0.00017842,2]
[319342030,1710678633325,-5666.0,0.00017842,2]
[319342031,1710678633335,-4760.0,0.00017842,2]
[319342032,1710678633345,-42865.0,0.00017842,2]
[319342033,1710678633354,-2427.0,0.00017842,2]
[319342034,1710678633364,-1044.0,0.00017842,2]
[319342035,1710678633373,-150.0,0.00017842,2]
[319342036,1710678633384,-2418.0,0.00017842,2]
[319342037,1710678633393,-449.14958006,0.00017858,2]
[319342038,1710678633403,-203.37,0.00017883,2]
[319342039,1710678633413,-500.0,0.0001789,2]
[319342040,1710678633426,-1449.1341,0.000179,2]
[319342041,1710678633435,-335.7935,0.000179,2]
[319342042,1710678633446,-4913.6267,0.000179,2]
[319342043,1710678633456,-150.80584846,0.0001792,2]
[319342044,1710678633466,-203.37,0.00017945,2]
[319342045,1710678633475,-4655.7103037,0.00018,2]
[319342046,1710678633485,-150.0,0.00018,2]
[319342047,1710678633494,-260.49,0.00018,2]
[319342048,1710678633504,-150.80584846,0.00018007,2]
[319342049,1710678633513,-203.37,0.00018007,2]
[319342050,1710678633523,-170.56131081,0.00018043,2]
[319342051,1710678633533,-170.05,0.00018063,2]
[319342052,1710678633542,-150.80584846,0.0001807,2]
[319342053,1710678633552,-150.80584846,0.00018099,2]
[319342054,1710678633562,-1725.0,0.000181,2]
[319342055,1710678633572,-260.49,0.00018137,2]
[319342056,1710678633582,-352.29,0.00018141,2]
[319342057,1710678633591,-232.30506691,0.00018161,2]
[319342058,1710678633601,-153.01160755,0.00018204,2]
[319342059,1710678633610,-260.49,0.00018274,2]
[319342060,1710678633620,-151.45421479,0.000183,2]
[319342061,1710678633630,-232.30506691,0.00018302,2]
[319342062,1710678633639,-159.63,0.00018323,2]
[319342063,1710678633649,-539.2,0.00018351,2]
[319342064,1710678633658,-155.71899126,0.00018378,2]
[319342065,1710678633673,-153.01160755,0.00018394,2]
[319342066,1710678633683,-153.01160755,0.00018395,2]
[319342067,1710678633692,-150.80584846,0.00018399,2]
[319342068,1710678633701,-260.49,0.00018411,2]
[319342069,1710678633711,-151.45421479,0.00018418,2]
[319342070,1710678633719,-156.38,0.00018452,2]
[319342071,1710678633729,-170.56131081,0.00018454,2]
[319342072,1710678633739,-170.56131081,0.00018494,2]
[319342073,1710678633748,-489.3517,0.000185,2]
[319342074,1710678633758,-460.8,0.00018513,2]
[319342075,1710678633767,-260.49,0.00018548,2]
[319342076,1710678633776,-153.01160755,0.00018552,2]
[319342077,1710678633786,-170.56131081,0.00018567,2]
[319342078,1710678633795,-500.0,0.000186,2]
[319342079,1710678633804,-39687.2275,0.000186,2]
[319342080,1710678633813,-332.11797764,0.00018618,2]
[319342081,1710678633822,-232.30506691,0.00018649,2]
[319342082,1710678633831,-153.30432521,0.00018672,2]
[319342083,1710678633841,-520.21,0.00018685,2]
[319342084,1710678633849,-150.21260498,0.00018774,2]
[319342085,1710678633862,-721.99761457,0.00018789,2]
[319342086,1710678633874,-1160.4576,0.00018791,2]
[319342087,1710678633883,-297.86106422,0.00018799,2]
[319342088,1710678633893,-4107.0,0.000188,5]
[319342089,1710678633902,-721.99761456,0.00018805,2]
[319342090,1710678633911,-153.01160755,0.00018815,2]
[319342091,1710678633932,-721.99761456,0.00018821,2]
[319342092,1710678633942,-150.80584846,0.00018823,2]
[319342093,1710678633951,-155.71899126,0.00018824,2]
[319342094,1710678633960,-721.99761456,0.00018837,2]
[319342095,1710678633969,-200.0,0.00018848,2]
[319342096,1710678633981,-800.0,0.00018848,2]
[319342097,1710678633991,-200.0,0.00018848,2]
[319342098,1710678634000,-500.0,0.00018848,2]
[319342099,1710678634010,-200.0,0.00018848,2]
[319342100,1710678634021,-27561.22932581,0.00018889,2]
[319342101,1710678634030,-27561.22932581,0.00018889,2]
[319342102,1710678634039,-27561.22932581,0.00018889,2]
[319342103,1710678634048,-27561.22932581,0.00018889,2]
[319342104,1710678634057,-27561.22932581,0.00018889,2]
[319342105,1710678634067,-27561.22932581,0.00018889,2]
[319342106,1710678634077,-27561.22932581,0.00018889,2]
[319342107,1710678634086,-27561.22932581,0.00018889,2]
[319342108,1710678634095,-158.85161328,0.00018889,2]
[319342109,1710678634105,-27561.22932581,0.00018889,2]
[319342110,1710678634114,-162.31041247,0.00018891,2]
[319342111,1710678634123,-31110.8095,0.00018894,2]
[319342112,1710678634132,-245000.0,0.00018894,2]
[319342113,1710678634141,-5000.0,0.00018899,2]
[319342114,1710678634150,-1512.83940694,0.00018899,2]
[319342115,1710678634160,-1512.83940684,0.00018899,2]
[319342116,1710678634174,-1512.83940684,0.00018899,2]
[319342117,1710678634183,-1512.83940684,0.00018899,2]
[319342118,1710678634192,-1512.83940684,0.00018899,2]
[319342119,1710678634202,-1512.83940684,0.00018899,2]
[319342120,1710678634211,-1512.83940684,0.000189,2]
[319342121,1710678634220,-1512.83940684,0.000189,2]
[319342122,1710678634229,-1512.83940684,0.000189,2]
[319342123,1710678634238,-1512.83940684,0.000189,2]
[319342124,1710678634247,-1512.83940684,0.000189,2]
[319342125,1710678634257,-12688.7095,0.000189,2]
[319342126,1710678634266,-1928.2699,0.000189,2]
[319342127,1710678634275,-2000.0,0.000189,2]
[319342128,1710678634284,-1512.83940684,0.000189,2]
[319342129,1710678634294,-31000.01994748,0.000189,2]
[319342130,1710678634303,-2500.0,0.000189,2]
[319342131,1710678634313,-153.8608552,0.000189,2]
[319342132,1710678634322,-158.85161328,0.000189,2]
[319342133,1710678634331,-27561.22932581,0.000189,2]
[319342134,1710678634340,-153.86085507,0.000189,2]
[319342135,1710678634349,-153.86085507,0.000189,2]
[319342136,1710678634357,-153.86085507,0.000189,2]
[319342137,1710678634367,-153.86085507,0.000189,2]
[319342138,1710678634375,-153.86085507,0.000189,2]
[319342139,1710678634385,-153.86085507,0.000189,2]
[319342140,1710678634394,-153.86085507,0.000189,2]
[319342141,1710678634403,-153.86085507,0.000189,2]
[319342142,1710678634412,-153.86085507,0.000189,2]
[319342143,1710678634424,-153.86085507,0.000189,2]
[319342144,1710678634435,-153.86085507,0.000189,2]
[319342145,1710678634443,-153.86085507,0.000189,2]
[319342146,1710678634453,-153.86085507,0.000189,2]
[319342147,1710678634462,-153.86085507,0.000189,2]
[319342148,1710678634471,-153.86085507,0.000189,2]
[319342149,1710678634482,-153.86085507,0.000189,2]
[319342150,1710678634492,-296.71847077,0.00018903,2]
[319342151,1710678634502,-215.519826,0.00018904,2]
[319342152,1710678634511,-977.32,0.00018924,2]
[319342153,1710678634521,-155.71899126,0.00018974,2]
[319342154,1710678634531,-500.0,0.00018986,2]
[319342155,1710678634540,-1254.0,0.00018986,2]
[319342156,1710678634550,-104153.88562116,0.0001899,4]
[319342157,1710678634560,-500.0,0.00018991,2]
[319342158,1710678634570,-500.0,0.00018991,2]
[319342159,1710678634579,-500.0,0.00018991,2]
[319342160,1710678634588,-500.0,0.00018991,2]
[319342161,1710678634597,-500.0,0.00018991,2]
[319342162,1710678634606,-500.0,0.00018991,2]
[319342163,1710678634615,-500.0,0.00018991,2]
[319342164,1710678634625,-500.0,0.00018991,2]
[319342165,1710678634634,-500.0,0.00018991,2]
[319342166,1710678634644,-500.0,0.00018991,2]
[319342167,1710678634653,-500.0,0.00018991,2]
[319342168,1710678634662,-500.0,0.00018991,2]
[319342169,1710678634674,-500.0,0.00018991,2]
[319342170,1710678634683,-500.0,0.00018991,2]
[319342171,1710678634693,-500.0,0.00018991,2]
[319342172,1710678634702,-500.0,0.00018991,2]
[319342173,1710678634712,-500.0,0.00018991,2]
[319342174,1710678634721,-500.0,0.00018991,2]
[319342175,1710678634731,-500.0,0.00018991,2]
[319342176,1710678634740,-500.0,0.00018991,2]
[319342177,1710678634749,-500.0,0.00018991,2]
[319342178,1710678634759,-27212.7400761,0.00018995,2]
[319342179,1710678634769,-557.8171888,0.00018995,2]
[319342180,1710678634778,-184.4746522,0.00018995,2]
[319342181,1710678634788,-82140.55461516,0.00018995,2]
[319342182,1710678634973,-590.31777639,0.00018995,2]
[319342183,1710678634989,-731.75192274,0.00018995,2]
[319342184,1710678635001,-10300.23723471,0.00018995,2]
[319342185,1710678635011,-1633.97819178,0.00018996,2]
[319342186,1710678635023,-398.24721211,0.00018996,2]
[319342187,1710678635036,-19970.65119151,0.00018996,2]
[319342188,1710678635046,-6539.4490355,0.00018996,2]
[319342223,1710678638204,-1065.77034384,0.00017842,2]
[319342224,1710678638218,-392.22965616,0.00017842,2]
[319342225,1710678638229,-721.99761456,0.00018852,2]
[319342226,1710678638241,-153.86085507,0.000189,2]
[319342227,1710678638253,-153.86085507,0.000189,2]
[319342228,1710678638263,-1247.31554628,0.00018996,2]
[319342229,1710678638322,-1596.62771302,0.00018996,2]
[319342230,1710678638458,-7234.19999991,0.00018996,2]
[319342250,1710678640137,-175.42081999,0.00018996,2]
[319342251,1710678640147,-2684.51033562,0.00018996,2]
[319342252,1710678640224,-1416.54621237,0.00018996,2]
[319342253,1710678640240,-513.37730212,0.00018996,2]
[319342254,1710678641521,-153.82,0.00018303,2]
[319342255,1710678641531,-132.995,0.00018868,2]
[319342256,1710678641583,-589.00261456,0.00018868,2]
[319342257,1710678641592,-128.18890544,0.00018996,2]
[319342269,1710678643064,-2500.0,0.00018278,2]
[319342270,1710678643074,-153.86085507,0.000189,2]
[319342271,1710678643084,-6840.52687845,0.00018996,2]
[319342272,1710678643093,-5953.82127617,0.00018996,2]
[319342273,1710678643104,-419.46487713,0.00018996,2]
[319342274,1710678643114,-1163.4226727,0.00018996,2]
[319342275,1710678643123,-237.20793493,0.00018996,2]
[319342276,1710678643385,-320.60925387,0.00018996,2]
[319342277,1710678643395,-557.8171888,0.00018996,2]
[319342278,1710678643405,-557.8171888,0.00018996,2]
[319342279,1710678643414,-557.8171888,0.00018996,2]
[319342280,1710678643424,-557.8171888,0.00018996,2]
[319342281,1710678643433,-184.4746522,0.00018996,2]
[319342282,1710678643443,-184.4746522,0.00018996,2]
[319342284,1710678643452,-184.4746522,0.00018996,2]
[319342286,1710678643461,-184.4746522,0.00018996,2]
[319342288,1710678643471,-184.4746522,0.00018996,2]
[319342289,1710678643480,-3174.11255105,0.00018996,2]
[319342290,1710678643492,-268.93731437,0.00018996,2]
[319342291,1710678643504,-2001.46869881,0.00018996,2]
[319342292,1710678643515,-8794.0,0.00018996,2]
[319342293,1710678643530,-4845.55968992,0.00018996,2]
[319342294,1710678643562,-2065.5997,0.00018996,2]
[319342295,1710678643576,-4411.00000403,0.00018996,2]
[319342296,1710678643592,-2261.6800012,0.00018996,2]
[319342324,1710678646202,-361.973656,0.00015838,2]
[319342326,1710678646212,-361.973656,0.00016036,2]
[319342328,1710678646221,-1299.52469228,0.00018996,2]
[319342330,1710678646232,-3023.8511,0.00018996,2]
[319342347,1710678646374,-43666.28172804,0.00018996,2]
[319342349,1710678646384,-57861.1694105,0.00018996,2]
[319342351,1710678646393,-39910.3233412,0.00018996,2]
[319342352,1710678646403,-21959.477272,0.00018996,2]
[319342353,1710678646412,-4008.6312028,0.00018996,2]
[319342354,1710678646421,-1400.0,0.00018996,2]
[319342355,1710678646431,-155.36268314,0.00018997,2]
[319342356,1710678646441,-360.47780149,0.00018997,2]
[319342357,1710678646451,-500.0,0.00018997,2]
[319342358,1710678646460,-500.0,0.00018997,2]
[319342359,1710678646470,-500.0,0.00018997,2]
[319342360,1710678646479,-500.0,0.00018997,2]
[319342361,1710678646489,-500.0,0.00018997,2]
[319342362,1710678646499,-500.0,0.00018997,2]
[319342363,1710678646509,-500.0,0.00018997,2]
[319342364,1710678646519,-187.84258134,0.00018997,2]
[319342365,1710678646529,-500.0,0.00018997,2]
[319342366,1710678646538,-500.0,0.00018997,2]
[319342367,1710678646548,-500.0,0.00018997,2]
[319342368,1710678646559,-500.0,0.00018997,2]
[319342369,1710678646569,-500.0,0.00018997,2]
[319342370,1710678646579,-337.66452527,0.00018997,2]
[319342371,1710678646589,-500.0,0.00018997,2]
[319342372,1710678646598,-500.0,0.00018997,2]
[319342373,1710678646609,-500.0,0.00018997,2]
[319342374,1710678646618,-500.0,0.00018997,2]
[319342375,1710678646628,-500.0,0.00018997,2]
[319342376,1710678646637,-500.0,0.00018997,2]
[319342377,1710678646647,-500.0,0.00018997,2]
[319342378,1710678646657,-500.0,0.00018997,2]
[319342379,1710678646666,-500.0,0.00018997,2]
[319342381,1710678646676,-771.98,0.00018997,2]
[319342383,1710678646686,-771.98,0.00018997,2]
[319342385,1710678646695,-771.98,0.00018997,2]
[319342386,1710678646705,-771.98,0.00018997,2]
[319342387,1710678646714,-500.0,0.00018997,2]
[319342388,1710678646724,-1447.93,0.00018997,2]
[319342389,1710678646733,-1447.93,0.00018997,2]
[319342390,1710678646742,-1447.93,0.00018997,2]
[319342391,1710678646751,-1447.93,0.00018997,2]
[319342392,1710678646761,-500.0,0.00018997,2]
[319342393,1710678646770,-500.0,0.00018997,2]
[319342394,1710678646780,-500.0,0.00018997,2]
[319342395,1710678646789,-500.0,0.00018997,2]
[319342396,1710678646799,-500.0,0.00018997,2]
[319342397,1710678646808,-500.0,0.00018997,2]
[319342398,1710678646816,-516.83022533,0.00018997,2]
[319342399,1710678646826,-1998.22586264,0.00018997,2]
[319342400,1710678646835,-10418.4193993,0.00018997,2]
[319342401,1710678646844,-357.72609294,0.00018997,2]
[319342402,1710678646854,-155.0,0.00018997,2]
[319342403,1710678646863,-204.84570995,0.00018998,2]
[319342404,1710678646873,-155.0,0.00018998,2]
[319342405,1710678646882,-2972.58721165,0.00018998,2]
[319342406,1710678646891,-160.22098966,0.00018998,2]
[319342407,1710678646900,-155.0,0.00018998,2]
[319342408,1710678646909,-782.55058005,0.00018998,2]
[319342409,1710678646919,-166.0502098,0.00018998,2]
[319342410,1710678646928,-11324.3102501,0.00018998,2]
[319342411,1710678646938,-409.6581285,0.00018998,2]
[319342412,1710678646948,-21858.90061946,0.00018998,2]
[319342413,1710678646960,-158.04643056,0.00018998,2]
[319342414,1710678646969,-19361.4999371,0.00018998,2]
[319342415,1710678646984,-3990.60244936,0.00018998,2]
[319342416,1710678646994,-424.69860644,0.00018998,2]
[319342417,1710678647004,-500.0,0.00018998,2]
[319342418,1710678647014,-500.0,0.00018998,2]
[319342419,1710678647025,-500.0,0.00018998,2]
[319342420,1710678647036,-500.0,0.00018998,2]
[319342421,1710678647047,-500.0,0.00018998,2]
[319342422,1710678647057,-500.0,0.00018998,2]
[319342423,1710678647067,-500.0,0.00018998,2]
[319342424,1710678647076,-500.0,0.00018998,2]
[319342425,1710678647086,-603.88564431,0.00018998,2]
[319342426,1710678647095,-500.0,0.00018998,2]
[319342427,1710678647104,-500.0,0.00018998,2]
[319342428,1710678647114,-500.0,0.00018998,2]
[319342429,1710678647124,-500.0,0.00018998,2]
[319342430,1710678647134,-500.0,0.00018998,2]
[319342431,1710678647144,-500.0,0.00018998,2]
[319342432,1710678647154,-500.0,0.00018998,2]
[319342433,1710678647164,-500.0,0.00018998,2]